fUST/lending_fUST_20260127
["ID","MTS","AMOUNT","RATE_DAILY","PERIOD"]
[403708882,1769497762154,-500.0,0.00010815,2]
[403708883,1769497762174,-500.0,0.00010815,2]
[403708884,1769497762193,-500.0,0.00010815,2]
[403708885,1769497762214,-500.0,0.00010815,2]
[403708886,1769497762234,-500.0,0.00010815,2]
[403708887,1769497762255,-500.0,0.00010815,2]
[403708888,1769497762275,-500.0,0.00010815,2]
[403708889,1769497762298,-500.0,0.00010815,2]
[403708890,1769497762322,-277.16099276,0.00010815,2]
[403708891,1769497762343,-500.0,0.00010815,2]
[403708892,1769497762364,-500.0,0.00010815,2]
[403708893,1769497762384,-500.0,0.00010815,2]
[403708894,1769497762405,-500.0,0.00010815,2]
[403708895,1769497762428,-500.0,0.00010815,2]
[403708896,1769497762448,-500.0,0.00010815,2]
[403708897,1769497762468,-500.0,0.00010815,2]
[403708898,1769497762490,-500.0,0.00010815,2]
[403708899,1769497762514,-500.0,0.00010815,2]
[403708900,1769497762536,-500.0,0.00010815,2]
[403708901,1769497762555,-500.0,0.00010815,2]
[403708902,1769497762576,-500.0,0.00010815,2]
[403708903,1769497762596,-500.0,0.00010815,2]
[403708904,1769497762616,-413.5556517,0.00010815,2]
[403708905,1769497762637,-500.0,0.00010815,2]
[403708906,1769497762657,-500.0,0.00010815,2]
[403708907,1769497762676,-500.0,0.00010815,2]
[403708908,1769497762697,-500.0,0.00010815,2]
[403708909,1769497762719,-500.0,0.00010815,2]
[403708910,1769497762740,-500.0,0.00010815,2]
[403708911,1769497762765,-500.0,0.00010815,2]
[403708912,1769497762787,-500.0,0.00010815,2]
[403708913,1769497762808,-500.0,0.00010815,2]
[403708914,1769497762829,-500.0,0.00010815,2]
[403708915,1769497762852,-500.0,0.00010815,2]
[403708916,1769497762875,-500.0,0.00010815,2]
[403708917,1769497762897,-500.0,0.00010815,2]
[403708918,1769497762917,-500.0,0.00010815,2]
[403708919,1769497762938,-500.0,0.00010815,2]
[403708920,1769497762959,-500.0,0.00010815,2]
[403708921,1769497762978,-500.0,0.00010815,2]
[403708922,1769497763000,-500.0,0.00010815,2]
[403708923,1769497763020,-500.0,0.00010815,2]
[403708924,1769497763040,-500.0,0.00010815,2]
[403708925,1769497763061,-500.0,0.00010815,2]
[403708926,1769497763082,-500.0,0.00010815,2]
[403708927,1769497763102,-500.0,0.00010815,2]
[403708928,1769497763122,-500.0,0.00010815,2]
[403708929,1769497763143,-500.0,0.00010815,2]
[403708930,1769497763163,-500.0,0.00010815,2]
[403708931,1769497763184,-500.0,0.00010815,2]
[403708932,1769497763203,-500.0,0.00010815,2]
[403708933,1769497763223,-500.0,0.00010815,2]
[403708934,1769497763244,-500.0,0.00010815,2]
[403708935,1769497763264,-500.0,0.00010815,2]
[403708936,1769497763284,-500.0,0.00010815,2]
[403708937,1769497763305,-500.0,0.00010815,2]
[403708938,1769497763326,-500.0,0.00010815,2]
[403708939,1769497763346,-500.0,0.00010815,2]
[403708940,1769497763366,-500.0,0.00010815,2]
[403708941,1769497763386,-500.0,0.00010815,2]
[403708942,1769497763406,-500.0,0.00010815,2]
[403708943,1769497763427,-500.0,0.00010815,2]
[403708944,1769497763447,-500.0,0.00010815,2]
[403708945,1769497763468,-500.0,0.00010815,2]
[403708946,1769497763489,-500.0,0.00010815,2]
[403708947,1769497763510,-500.0,0.00010815,2]
[403708948,1769497763530,-500.0,0.00010815,2]
[403708949,1769497763697,-500.0,0.00010815,2]
[403708950,1769497763719,-500.0,0.00010815,2]
[403708951,1769497763740,-500.0,0.00010815,2]
[403708952,1769497763764,-500.0,0.00010815,2]
[403708953,1769497763785,-500.0,0.00010815,2]
[403708954,1769497763806,-500.0,0.00010815,2]
[403708955,1769497763830,-500.0,0.00010815,2]
[403708956,1769497763850,-500.0,0.00010815,2]
[403708957,1769497763870,-500.0,0.00010815,2]
[403708958,1769497763890,-500.0,0.00010815,2]
[403708959,1769497763911,-500.0,0.00010815,2]
[403708960,1769497763933,-500.0,0.00010815,2]
[403708961,1769497763953,-500.0,0.00010815,2]
[403708962,1769497763974,-500.0,0.00010815,2]
[403708963,1769497763996,-500.0,0.00010815,2]
[403708964,1769497764017,-500.0,0.00010815,2]
[403708965,1769497764037,-500.0,0.00010815,2]
[403708966,1769497764058,-500.0,0.00010815,2]
[403708967,1769497764081,-500.0,0.00010815,2]
[403708968,1769497764103,-500.0,0.00010815,2]
[403708969,1769497764124,-500.0,0.00010815,2]
[403708970,1769497764144,-500.0,0.00010815,2]
[403708971,1769497764165,-500.0,0.00010815,2]
[403708972,1769497764187,-500.0,0.00010815,2]
[403708973,1769497764208,-500.0,0.00010815,2]
[403708974,1769497764228,-500.0,0.00010815,2]
[403708975,1769497764250,-500.0,0.00010815,2]
[403708976,1769497764271,-500.0,0.00010815,2]
[403708977,1769497764290,-500.0,0.00010815,2]
[403708978,1769497764310,-500.0,0.00010815,2]
[403708979,1769497764329,-500.0,0.00010815,2]
[403708980,1769497764350,-500.0,0.00010815,2]
[403708981,1769497764370,-500.0,0.00010815,2]
[403708982,1769497764390,-500.0,0.00010815,2]
[403708983,1769497764411,-500.0,0.00010815,2]
[403708984,1769497764434,-500.0,0.00010815,2]
[403708985,1769497764456,-186.71726183,0.00010815,2]
[403708986,1769497764502,-313.28273817,0.00010815,2]
[403708987,1769497764522,-500.0,0.00010815,2]
[403708988,1769497764541,-500.0,0.00010815,2]
[403708989,1769497764560,-524.67083043,0.00010815,2]
[403708990,1769497764580,-500.0,0.00010815,2]
[403708991,1769497764602,-500.0,0.00010815,2]
[403708992,1769497764626,-500.0,0.00010815,2]
[403708993,1769497764646,-500.0,0.00010815,2]
[403708994,1769497764665,-500.0,0.00010815,2]
[403708995,1769497764686,-500.0,0.00010815,2]
[403708996,1769497764706,-500.0,0.00010815,2]
[403708997,1769497764727,-500.0,0.00010815,2]
[403708998,1769497764750,-500.0,0.00010815,2]
[403708999,1769497764773,-500.0,0.00010815,2]
[403709000,1769497764794,-186.76087579,0.00010815,2]
[403709001,1769497764815,-500.0,0.00010815,2]
[403709002,1769497764836,-500.0,0.00010815,2]
[403709003,1769497764854,-250.0,0.00010815,2]
[403709004,1769497764873,-500.0,0.00010815,2]
[403709005,1769497764893,-500.0,0.00010815,2]
[403709006,1769497764913,-500.0,0.00010815,2]
[403709007,1769497764933,-500.0,0.00010815,2]
[403709008,1769497764954,-500.0,0.00010815,2]
[403709009,1769497764975,-500.0,0.00010815,2]
[403709010,1769497764996,-500.0,0.00010815,2]
[403709011,1769497765019,-500.0,0.00010815,2]
[403709012,1769497765048,-500.0,0.00010815,2]
[403709013,1769497765085,-500.0,0.00010815,2]
[403709014,1769497765106,-500.0,0.00010815,2]
[403709015,1769497765149,-500.0,0.00010815,2]
[403709016,1769497765175,-500.0,0.00010815,2]
[403709017,1769497765199,-500.0,0.00010815,2]
[403709018,1769497765224,-500.0,0.00010815,2]
[403709019,1769497765247,-500.0,0.00010815,2]
[403709020,1769497765271,-500.0,0.00010815,2]
[403709021,1769497765297,-500.0,0.00010815,2]
[403709022,1769497765323,-500.0,0.00010815,2]
[403709023,1769497765346,-500.0,0.00010815,2]
[403709024,1769497765368,-500.0,0.00010815,2]
[403709025,1769497765391,-500.0,0.00010815,2]
[403709026,1769497765413,-450.0,0.00010815,2]
[403709027,1769497765439,-500.0,0.00010815,2]
[403709028,1769497765464,-500.0,0.00010815,2]
[403709029,1769497765488,-500.0,0.00010815,2]
[403709030,1769497765513,-500.0,0.00010815,2]
[403709031,1769497765534,-500.0,0.00010815,2]
[403709032,1769497765555,-500.0,0.00010815,2]
[403709033,1769497765581,-500.0,0.00010815,2]
[403709034,1769497765603,-500.0,0.00010815,2]
[403709035,1769497765624,-500.0,0.00010815,2]
[403709036,1769497765645,-500.0,0.00010815,2]
[403709037,1769497765667,-500.0,0.00010815,2]
[403709038,1769497765688,-500.0,0.00010815,2]
[403709039,1769497765709,-500.0,0.00010815,2]
[403709040,1769497765730,-500.0,0.00010815,2]
[403709041,1769497765754,-500.0,0.00010815,2]
[403709042,1769497765778,-500.0,0.00010815,2]
[403709043,1769497765800,-500.0,0.00010815,2]
[403709044,1769497765825,-500.0,0.00010815,2]
[403709045,1769497765851,-500.0,0.00010815,2]
[403709046,1769497765872,-500.0,0.00010815,2]
[403709047,1769497765894,-500.0,0.00010815,2]
[403709048,1769497765915,-500.0,0.00010815,2]
[403709049,1769497765936,-500.0,0.00010815,2]
[403709050,1769497765957,-500.0,0.00010815,2]
[403709051,1769497765977,-500.0,0.00010815,2]
[403709052,1769497765999,-500.0,0.00010815,2]
[403709053,1769497766019,-500.0,0.00010815,2]
[403709054,1769497766041,-500.0,0.00010815,2]
[403709055,1769497766062,-500.0,0.00010815,2]
[403709056,1769497766084,-500.0,0.00010815,2]
[403709057,1769497766105,-500.0,0.00010815,2]
[403709058,1769497766135,-500.0,0.00010815,2]
[403709059,1769497766157,-500.0,0.00010815,2]
[403709060,1769497766179,-500.0,0.00010815,2]
[403709061,1769497766203,-500.0,0.00010815,2]
[403709062,1769497766226,-500.0,0.00010815,2]
[403709063,1769497766248,-500.0,0.00010815,2]
[403709064,1769497766269,-500.0,0.00010815,2]
[403709065,1769497766291,-500.0,0.00010815,2]
[403709066,1769497766312,-500.0,0.00010815,2]
[403709067,1769497766335,-500.0,0.00010815,2]
[403709068,1769497766356,-450.23107383,0.00010815,2]
[403709069,1769497766378,-500.0,0.00010815,2]
[403709070,1769497766400,-500.0,0.00010815,2]
[403709071,1769497766422,-500.0,0.00010815,2]
[403709072,1769497766446,-500.0,0.00010815,2]
[403709073,1769497766468,-500.0,0.00010815,2]
[403709074,1769497766490,-500.0,0.00010815,2]
[403709075,1769497766512,-500.0,0.00010815,2]
[403709076,1769497766535,-500.0,0.00010815,2]
[403709077,1769497766558,-500.0,0.00010815,2]
[403709078,1769497766580,-500.0,0.00010815,2]
[403709079,1769497766602,-500.0,0.00010815,2]
[403709080,1769497766624,-500.0,0.00010815,2]
[403709081,1769497766646,-500.0,0.00010815,2]
[403709082,1769497766669,-500.0,0.00010815,2]
[403709083,1769497766691,-500.0,0.00010815,2]
[403709084,1769497766712,-500.0,0.00010815,2]
[403709085,1769497766733,-500.0,0.00010815,2]
[403709086,1769497766758,-436.88741368,0.00010815,2]
[403709087,1769497766780,-500.0,0.00010815,2]
[403709088,1769497766803,-500.0,0.00010815,2]
[403709089,1769497766827,-500.0,0.00010815,2]
[403709090,1769497766848,-500.0,0.00010815,2]
[403709091,1769497766870,-500.0,0.00010815,2]
[403709092,1769497766892,-500.0,0.00010815,2]
[403709093,1769497766912,-500.0,0.00010815,2]
[403709094,1769497766933,-500.0,0.00010815,2]
[403709095,1769497766953,-500.0,0.00010815,2]
[403709096,1769497766974,-500.0,0.00010815,2]
[403709097,1769497766995,-500.0,0.00010815,2]
[403709098,1769497767017,-500.0,0.00010815,2]
[403709099,1769497767039,-500.0,0.00010815,2]
[403709100,1769497767061,-500.0,0.00010815,2]
[403709101,1769497767083,-500.0,0.00010815,2]
[403709102,1769497767103,-500.0,0.00010815,2]
[403709103,1769497767124,-500.0,0.00010815,2]
[403709104,1769497767143,-314.56291378,0.00010815,2]
[403709105,1769497767292,-500.0,0.00010815,2]
[403709106,1769497767314,-500.0,0.00010815,2]
[403709107,1769497767335,-500.0,0.00010815,2]
[403709108,1769497767353,-50000.0,0.00010816,2]
[403709109,1769497767372,-230.6681517,0.00010888,2]
[403709110,1769497767395,-2721.06,0.00010894,2]
[403709111,1769497767656,5000.0,0.00010707,2]
[403709112,1769497767692,-633.50646605,0.0001101,2]
[403709113,1769497767712,-590.66551187,0.00011022,2]
[403709114,1769497767734,-300.0,0.00011023,2]
[403709115,1769497767761,-1200.0,0.00011023,2]
[403709116,1769497767784,-300.0,0.00011023,2]
[403709117,1769497767806,-420.0,0.0001106,2]
[403709118,1769497774805,5000.0,0.00011227,2]
[403709119,1769497775079,1000.0,0.0001106,2]
[403709120,1769497776604,648.04808703,0.0001106,2]
[403709121,1769497789718,5000.0,0.00011227,2]
[403709122,1769497797658,5000.0,0.00011227,2]
[403709123,1769497798559,332.3,7.482e-05,2]
[403709124,1769497798998,664.6,8.163e-05,2]
[403709125,1769497799427,996.9,8.843e-05,2]
[403709126,1769497799840,1329.2,9.523e-05,2]
[403709127,1769497800372,1661.49,0.00010203,2]
[403709128,1769497800943,1993.79,0.00010883,2]
[403709129,1769497812976,5000.0,0.00011227,2]
[403709130,1769497826306,151.0,0.00011227,2]
[403709131,1769497827760,151.0,0.00011227,2]
[403709132,1769497829108,151.0,0.00011227,2]
[403709133,1769497830346,151.0,0.00011227,2]
[403709136,1769497831931,-579.0,0.0001134,2]
[403709137,1769497831942,-153.16499747,0.0001134,2]
[403709138,1769497831952,-2267.83500253,0.00011564,2]
[403709139,1769497832077,151.0,0.00011227,2]
[403709140,1769497833452,151.0,0.00011227,2]
[403709141,1769497836725,151.0,0.00011227,2]
[403709142,1769497837964,151.0,0.00011227,2]
[403709143,1769497838145,-5000.0,0.00011448,2]
[403709144,1769497838155,-58.25499747,0.00011564,2]
[403709145,1769497838165,-239.08913361,0.00012057,2]
[403709146,1769497838174,-2658.39,0.00012244,2]
[403709147,1769497838183,-300.0,0.00012328,2]
[403709148,1769497838192,-300.0,0.00012328,2]
[403709149,1769497838201,-1200.0,0.00012328,2]
[403709150,1769497838211,-300.0,0.00012328,2]
[403709151,1769497838220,-300.0,0.00012328,2]
[403709152,1769497838229,-3447.08,0.00012329,2]
[403709153,1769497838238,-2872.57,0.00012329,2]
[403709154,1769497838247,-2393.81,0.00012329,2]
[403709155,1769497838256,-1994.84,0.00012329,2]
[403709156,1769497838265,-1662.36,0.00012329,2]
[403709158,1769497838274,-1385.3,0.00012329,2]
[403709160,1769497838283,-1154.42,0.00012329,2]
[403709161,1769497838293,-962.02,0.00012329,2]
[403709163,1769497838302,-801.68,0.00012329,2]
[403709165,1769497838312,-668.07,0.00012329,2]
[403709167,1769497838320,-556.72,0.00012329,2]
[403709169,1769497838329,-430.68806033,0.00012329,2]
[403709172,1769497838344,-33.25193967,0.00012329,2]
[403709174,1769497838353,-386.61,0.00012329,2]
[403709175,1769497838362,-322.18,0.00012329,2]
[403709176,1769497838371,-268.48,0.00012329,2]
[403709177,1769497838380,-223.73,0.00012329,2]
[403709179,1769497838390,-186.45,0.00012329,2]
[403709181,1769497838399,-155.37,0.00012329,2]
[403709183,1769497838408,-776.88,0.00012329,2]
[403709185,1769497838417,-50000.0,0.00012329,2]
[403709187,1769497838426,-282.95195027,0.00012538,2]
[403709189,1769497838436,-500.73949909,0.00012831,2]
[403709191,1769497838445,-2990.69,0.00012924,2]
[403709193,1769497838454,-500.0,0.00013273,2]
[403709195,1769497838463,-500.0,0.00013273,2]
[403709197,1769497838473,-464.54701019,0.00013273,2]
[403709199,1769497838482,-502.68815338,0.00013273,2]
[403709201,1769497838491,-500.0,0.00013507,2]
[403709203,1769497838500,-420.0,0.00013529,2]
[403709205,1769497838509,-1680.0,0.00013561,2]
[403709207,1769497838519,-3322.99,0.00013604,2]
[403709209,1769497838527,-300.0,0.00013673,2]
[403709210,1769497838537,-500.0,0.00013698,2]
[403709211,1769497838546,-500.0,0.00013698,2]
[403709212,1769497838555,-500.0,0.00013698,2]
[403709213,1769497838564,-500.0,0.00013698,2]
[403709214,1769497838574,-500.0,0.00013698,2]
[403709215,1769497838583,-500.0,0.00013698,2]
[403709216,1769497838592,-182.28,0.00013698,2]
[403709217,1769497838601,-500.0,0.00013698,2]
[403709218,1769497838610,-500.0,0.00013698,2]
[403709219,1769497838619,-500.0,0.00013698,2]
[403709220,1769497838628,-500.0,0.00013698,2]
[403709221,1769497838638,-500.0,0.00013698,2]
[403709222,1769497838647,-500.0,0.00013698,2]
[403709223,1769497838656,-500.0,0.00013698,2]
[403709224,1769497838666,-500.0,0.00013698,2]
[403709225,1769497838675,-500.0,0.00013698,2]
[403709226,1769497838684,-500.0,0.00013698,2]
[403709227,1769497838695,-500.0,0.00013698,2]
[403709228,1769497838704,-500.0,0.00013698,2]
[403709229,1769497838713,-500.0,0.00013698,2]
[403709230,1769497838723,-500.0,0.00013698,2]
[403709231,1769497838732,-40845.6437687,0.00013699,2]
[403709232,1769497838741,-1000.0,0.00013699,2]
[403709233,1769497838750,-333.79715554,0.00013699,2]
[403709234,1769497838759,-500.0,0.00014182,2]
[403709235,1769497838768,-600.0,0.00014221,2]
[403709236,1769497838781,-326.11411218,0.00014538,2]
[403709237,1769497838794,-300.0,0.00014741,2]
[403709238,1769497838806,-900.0,0.00014768,2]
[403709239,1769497838817,-587.0,0.00014847,2]
[403709240,1769497838826,-2224.0,0.00014917,2]
[403709241,1769497838835,-1041.66666667,0.0001504,2]
[403709242,1769497838846,-167.744615,0.00015068,2]
[403709243,1769497838856,-500.0,0.00015872,2]
[403709244,1769497838865,-15711.0598154,0.00015873,2]
[403709245,1769497838874,-150.0,0.00016,2]
[403709246,1769497838884,-823.0,0.00016293,2]
[403709247,1769497838894,-250.0,0.00016438,2]
[403709248,1769497838903,-369.27627408,0.00016538,2]
[403709249,1769497838914,-224.02,0.000169,2]
[403709250,1769497838923,-794.26,0.000169,2]
[403709251,1769497838932,-200.0,0.00017,2]
[403709252,1769497838944,-200.0,0.00017,2]
[403709253,1769497838953,-200.0,0.00017,2]
[403709254,1769497838963,-200.0,0.00017,2]
[403709255,1769497838972,-200.0,0.00017,2]
[403709256,1769497838981,-200.0,0.00017,2]
[403709257,1769497838991,-200.0,0.00017,2]
[403709258,1769497839001,-200.0,0.00017,2]
[403709259,1769497839011,-200.0,0.00017,2]
[403709260,1769497839020,-200.0,0.00017,2]
[403709261,1769497839029,-212.06874983,0.00017,2]
[403709262,1769497839038,-179.0,0.00017314,2]
[403709263,1769497839050,-374.691,0.00017314,2]
[403709264,1769497839069,-250.0,0.00017679,2]
[403709265,1769497839080,-1152.0,0.0001788,2]
[403709266,1769497839089,-729.0,0.00017906,2]
[403709267,1769497839098,-729.0,0.00018226,2]
[403709268,1769497839107,-729.0,0.00018233,2]
[403709269,1769497839117,-5000.0,0.00018333,2]
[403709270,1769497839126,-201.93286099,0.00018334,2]
[403709271,1769497839135,-209.40437684,0.00018334,2]
[403709272,1769497839145,-217.15233878,0.00018334,2]
[403709273,1769497839154,-225.18697532,0.00018334,2]
[403709274,1769497839163,-668.65185757,0.00018334,2]
[403709275,1769497839172,-287.94827252,0.00018334,2]
[403709276,1769497839181,-29404.74534189,0.00018334,2]
[403709277,1769497839191,-553.64373807,0.00018334,2]
[403709278,1769497839200,-255.04015786,0.00018334,2]
[403709279,1769497839210,-2674.60743027,0.00018334,2]
[403709280,1769497839219,-201.93286099,0.00018334,2]
[403709281,1769497839228,-151.0,0.00018334,2]
[403709282,1769497839237,-500.0,0.00018334,2]
[403709283,1769497839246,-151.0,0.00018334,2]
[403709284,1769497839259,-151.0,0.00018334,2]
[403709285,1769497839269,-151.0,0.00018334,2]
[403709286,1769497839278,-152.99083282,0.00018334,2]
[403709287,1769497839287,-215.0,0.000184,2]
[403709288,1769497839296,-412.43843599,0.00018538,2]
[403709289,1769497839306,-729.0,0.00018715,2]
[403709290,1769497839315,-161.0,0.0001872,2]
[403709291,1769497839325,-156.22902398,0.0001873,2]
[403709292,1769497839335,-157.64321574,0.00018795,30]
[403709293,1769497839344,-501.93281448,0.00018798,5]
[403709294,1769497839355,-168.0,0.00018857,2]
[403709295,1769497839364,-651.89937698,0.00018882,2]
[403709296,1769497839374,-496.47127164,0.00018882,2]
[403709297,1769497839383,-2773.56790519,0.00018882,2]
[403709298,1769497839536,-209.40437684,0.00018882,2]
[403709299,1769497839546,-303.10001603,0.000189,2]
[403709300,1769497839555,-303.10001603,0.000189,2]
[403709301,1769497839564,-168.0,0.00018906,2]
[403709302,1769497839574,-168.0,0.0001892,2]
[403709303,1769497839583,-157.64321574,0.00018932,30]
[403709304,1769497839592,-168.0,0.00018974,2]
[403709305,1769497839602,-729.0,0.0001904,2]
[403709306,1769497839611,-729.0,0.0001904,2]
[403709307,1769497839622,-157.85653536,0.00019041,30]
[403709308,1769497839633,-158.28317465,0.00019041,30]
[403709309,1769497839644,-303.10001603,0.00019089,2]
[403709310,1769497839653,-303.10001603,0.00019089,2]
[403709311,1769497839663,-157.64321574,0.00019096,30]
[403709312,1769497839673,-164.03931808,0.000191,2]
[403709313,1769497839684,-729.0,0.00019152,2]
[403709314,1769497839694,-253.99,0.00019178,2]
[403709315,1769497839704,-253.99,0.00019178,2]
[403709316,1769497839713,-2539.914,0.00019178,2]
[403709317,1769497839723,-200.0,0.00019178,2]
[403709318,1769497839735,-587.8,0.00019178,2]
[403709319,1769497839745,-33772.71518178,0.000192,3]
[403709320,1769497839754,-168.94,0.000192,2]
[403709321,1769497839764,-168.11,0.000192,2]
[403709322,1769497839773,-800.0,0.00019202,2]
[403709323,1769497839785,-157.64321574,0.00019233,30]
[403709324,1769497839796,-168.0,0.00019259,2]
[403709325,1769497839805,-500.0,0.00019264,3]
[403709326,1769497839815,-500.0,0.00019264,3]
[403709327,1769497839824,-201.4653447,0.00019264,3]
[403709328,1769497839834,-150.0,0.00019264,3]
[403709329,1769497839843,-150.0,0.00019264,3]
[403709331,1769497839853,-500.0,0.00019264,3]
[403709333,1769497839863,-500.0,0.00019264,3]
[403709335,1769497839872,-150.0,0.00019264,3]
[403709337,1769497839882,-500.0,0.00019264,3]
[403709339,1769497839891,-150.0,0.00019264,3]
[403709341,1769497839900,-500.0,0.00019264,3]
[403709343,1769497839909,-500.0,0.00019264,3]
[403709345,1769497839918,-500.0,0.00019264,3]
[403709347,1769497839927,-150.0,0.00019264,3]
[403709349,1769497839935,-500.0,0.00019264,3]
[403709351,1769497839944,-284.15615338,0.00019264,3]
[403709353,1769497839955,-500.0,0.00019264,3]
[403709355,1769497839963,-500.0,0.00019264,3]
[403709357,1769497839972,-150.0,0.00019264,3]
[403709359,1769497839981,-800.0,0.00019266,2]
[403709361,1769497839989,-303.10001603,0.00019278,2]
[403709363,1769497839998,-303.10001603,0.00019278,2]
[403709365,1769497840008,-157.85653536,0.00019288,30]
[403709367,1769497840017,-158.28317465,0.00019288,30]
[403709369,1769497840027,-419.3303856,0.00019306,2]
[403709371,1769497840035,-610.9405366,0.00019306,2]
[403709373,1769497840044,-237.12601545,0.00019342,3]
[403709375,1769497840054,-800.0,0.00019348,2]
[403709376,1769497840063,-735.0,0.0001936,2]
[403709377,1769497840071,-157.64321574,0.0001937,30]
[403709378,1769497840081,-150.0,0.00019382,2]
[403709379,1769497840090,-13636.359465,0.00019382,7]
[403709380,1769497840098,-151.0,0.000194,2]
[403709381,1769497840107,-542.45970376,0.00019401,3]
[403709382,1769497840116,-500.0,0.00019401,3]
[403709383,1769497840124,-150.0,0.00019401,3]
[403709384,1769497840133,-150.0,0.00019401,3]
[403709385,1769497840142,-500.0,0.00019401,3]
[403709386,1769497840151,-500.0,0.00019401,3]
[403709387,1769497840160,-150.0,0.00019401,3]
[403709388,1769497840169,-500.0,0.00019401,3]
[403709389,1769497840178,-206.35919753,0.00019401,3]
[403709390,1769497840187,-500.0,0.00019401,3]
[403709391,1769497840195,-500.0,0.00019401,3]
[403709392,1769497840204,-500.0,0.00019401,3]
[403709393,1769497840213,-202.98283622,0.00019401,3]
[403709394,1769497840222,-500.0,0.00019401,3]
[403709395,1769497840231,-152.952961,0.00019401,7]
[403709396,1769497840240,-500.0,0.00019401,3]
[403709397,1769497840248,-500.0,0.00019401,3]
[403709398,1769497840257,-150.0,0.00019401,3]
[403709399,1769497840266,-217.15233878,0.0001943,2]
[403709400,1769497840275,-800.0,0.00019441,2]
[403709401,1769497840283,-800.0,0.00019446,2]
[403709402,1769497840292,-507.21,0.00019451,2]
[403709403,1769497840301,-303.10001603,0.00019467,2]
[403709404,1769497840310,-303.10001603,0.00019467,2]
[403709405,1769497840319,-1000.490761,0.000195,2]
[403709406,1769497840327,-172.552262,0.000195,7]
[403709407,1769497840336,-1044.753101,0.000195,7]
[403709408,1769497840345,-164.03931808,0.000195,2]
[403709409,1769497840354,-157.64321574,0.00019507,30]
[403709410,1769497840362,-3882.616992,0.00019507,7]
[403709411,1769497840372,-209.195362,0.00019507,7]
[403709413,1769497840381,-150.0,0.00019519,2]
[403709415,1769497840390,-487.0,0.00019519,2]
[403709417,1769497840400,-487.0,0.00019519,2]
[403709419,1769497840409,-487.0,0.00019519,2]
[403709421,1769497840418,-487.0,0.00019519,2]
[403709423,1769497840427,-487.0,0.00019519,2]
[403709425,1769497840436,-487.0,0.00019519,2]
[403709427,1769497840446,-487.0,0.00019519,2]
[403709429,1769497840455,-487.0,0.00019519,2]
[403709430,1769497840463,-487.0,0.00019519,2]
[403709432,1769497840472,-844.42,0.00019519,2]
[403709434,1769497840481,-256.61357181,0.00019538,3]
[403709436,1769497840491,-200.0,0.00019538,3]
[403709438,1769497840500,-200.0,0.00019538,3]
[403709441,1769497840510,-500.0,0.00019538,3]
[403709442,1769497840519,-400.0,0.00019538,3]
[403709444,1769497840529,-276.75967829,0.00019538,3]
[403709446,1769497840539,-500.0,0.00019538,3]
[403709448,1769497840549,-500.0,0.00019538,3]
[403709450,1769497840558,-500.0,0.00019538,3]